[Event "5th Sharjah Masters 2022"]
[Site "Sharjah"]
[Date "2022.05.27"]
[Round "7.19"]
[White "Azarov, Sergei"]
[Black "Nihal Sarin"]
[Result "0-1"]
[ECO "C07"]
[WhiteElo "2588"]
[BlackElo "2646"]
[Annotator "TA"]
[PlyCount "78"]
[EventDate "2022.05.21"]
[EventType "swiss"]
[EventCountry "UAE"]
[SourceTitle "playchess.com"]
[Source "ChessBase"]
[SourceQuality "1"]
[TimeControl "5400+30"]

{[%evp 14,78,16,9,13,4,8,16,11,14,13,7,13,14,13,14,13,0,0,0,0,0,0,0,0,0,0,-10,-9,-11,-12,-18,-6,-6,-6,-6,-5,-9,-9,-20,-12,-18,-16,-29,-8,-14,0,-16,0,-20,0,-15,-17,-33,-36,-204,-203,-117,-16,-38,0,-1671,-1407,-29989,-29990,-29990,-29986]} 1. e4 {[%emt 0:00:04]} e6 {[%emt 0:00:31]} 2. d4 {[%emt 0:00:20]} d5 {[%emt 0:00:06]} 3. Nd2 {[%emt 0:00:16]} c5 {[%emt 0:00:08]} 4. Ngf3 {[%emt 0:00:26]} cxd4 {[%emt 0:00:11]} 5. Nxd4 {[%emt 0:00:12]} Nc6 {[%emt 0:00:05]} 6. Bb5 {[%emt 0:00:30]} Bd7 {[%emt 0:00:07]} 7. Nxc6 {[%emt 0:00:18]} bxc6 {[%emt 0:00:04]} 8. Bd3 {[%emt 0:00:14]} Bd6 {[%emt 0:00:04] C07: French Tarrasch: 3...c5, 4 Ngf3 and 4 exd5 Qxd5.} 9. Qe2 {[%emt 0:01:53]} e5 $1 {[%emt 0:00:10][%mdl 4] is now more promising than 9...Ne7.} 10. exd5 {[%emt 0:09:46]} cxd5 {[%emt 0:00:55] The position is equal.} 11. c4 {[%emt 0:01:06]} Ne7 {[%emt 0:01:00][%cal Bg8e7,Be7d5,Bd5f4][%mdl 32]} 12. cxd5 {[%emt 0:07:31]} Nxd5 {[%emt 0:00:41]} 13. Nc4 {[%emt 0:01:46]} Bb4+ {[%emt 0:00:57]} 14. Bd2 {[%emt 0:03:31]} O-O {[%emt 0:00:55]} 15. O-O {[%emt 0:19:40]} ({Avoid the trap} 15. Nxe5 $2 Nf4 16. Qe4 (16. Bxh7+ $2 Kh8 $19) 16... Bxd2+ 17. Kxd2 Nxd3 18. Qxd3 Qa5+ 19. Qc3 Qd5+ 20. Ke3 Rae8 $19) 15... Bxd2 $1 {[%emt 0:04:10]} 16. Qxd2 {[%emt 0:00:07][%cal Od3h7]} Nf4 $1 {[%emt 0:05:56]} 17. Be4 {[%emt 0:15:22]} Bb5 {[%emt 0:03:07]} 18. Bxa8 {[%emt 0:00:27]} Qxa8 {[%emt 0:04:23][%csl Gf4][%cal Ra8g2] [#]} 19. Ne3 {[%emt 0:00:13] [#]} Rd8 $146 {[%emt 0:05:01]} ({Predecessor:} 19... Bxf1 20. Kxf1 Rd8 21. Qc3 Qb8 22. b3 Qd6 23. a4 h5 24. b4 Qe6 25. b5 Rc8 {1-0 (49) Samant,A (2297)-Bharath,S (2479) Castelldefels 2021}) 20. Qc2 {[%emt 0:00:42]} Bxf1 {[%emt 0:01:20]} 21. Rxf1 {[%emt 0:00:10]} h5 {[%emt 0:07:43]} 22. Qc7 {[%emt 0:03:57]} f6 {[%emt 0:01:08]} 23. Qc4+ {[%emt 0:20:06]} Kh8 {[%emt 0:02:04] With the idea ...Rd2.} (23... Kf8 {with more complications.} 24. Rc1 Qb7 25. b3 Rd2) 24. Qc2 {[%emt 0:01:20] Prevents Rd2.} Qb7 {[%emt 0:08:05]} 25. h3 {[%emt 0:00:43]} Rd3 {[%emt 0:03:33]} 26. Re1 {[%emt 0:05:37]} Qe4 {[%emt 0:26:05]} 27. Kh2 {[%emt 0:00:17]} Kh7 {[%emt 0:01:23][%cal Of4g2] Threatens to win with ...Nxg2!} 28. Rc1 {[%emt 0:01:05]} h4 {[%emt 0:03:05]} 29. b3 {[%emt 0:00:35]} a5 {[%emt 0:03:00]} 30. Qc6 {[%emt 0:01:24]} Qg6 {[%emt 0:02:06]} 31. Qc2 {[%emt 0:03:26]} f5 {[%emt 0:07:17][%cal Bf6f5,Bf5f4,Bf4f3,Bf3g2][%mdl 32]} 32. Kh1 {[%emt 0:00:58]} e4 {[%emt 0:01:09]} 33. Rg1 {[%emt 0:01:31]} Ne6 {[%emt 0:06:55] Strongly threatening ...f4.} 34. Re1 $2 {[%emt 0:00:25]} (34. Kh2 $15) 34... f4 $19 {[%emt 0:02:40]} 35. Ng4 {[%emt 0:00:11] [#] Ne5 is the strong threat.} Qf5 {[%emt 0:00:01] Prevents Ne5. Black is more active.} (35... f3 $1 $17 {[%cal Rf3g2]} 36. gxf3 Nd4) 36. Qc6 {[%emt 0:01:22]} Ng5 {[%emt 0:00:13] White must now prevent ...f3.} 37. Qc7 $2 {[%emt 0:00:57][%mdl 8192]} (37. Qe8 $11) 37... f3 {[%emt 0:00:31] ( -> ...fxg2+)} 38. Re3 {[%emt 0:00:30]} Rd1+ {[%emt 0:00:26]} 39. Kh2 {[%emt 0:00:03]} fxg2 {[%emt 0:00:03] Weighted Error Value: White=0.60/Black=0.10 (very precise)} 0-1

[Event "5th Sharjah Masters 2022"]
[Site "Sharjah"]
[Date "2022.05.27"]
[Round "7.20"]
[White "Kuybokarov, Temur"]
[Black "Ter-Sahakyan, Samvel"]
[Result "1/2-1/2"]
[ECO "B97"]
[WhiteElo "2582"]
[BlackElo "2640"]
[Annotator "TA"]
[PlyCount "94"]
[EventDate "2022.05.21"]
[EventType "swiss"]
[EventCountry "UAE"]
[SourceTitle "playchess.com"]
[Source "ChessBase"]
[SourceQuality "1"]
[TimeControl "5400+30"]

{[%evp 19,94,0,0,0,16,18,22,18,18,18,22,22,22,16,15,16,16,15,15,15,15,15,15,15,15,15,15,22,22,0,0,0,0,0,0,0,0,0,0,0,0,0,0,0,0,0,0,0,0,0,0,0,0,0,0,0,0,0,0,0,0,0,0,0,0,0,0,0,0,0,0,0,0,0,0,0,0]} 1. e4 {[%emt 0:00:07]} c5 {[%emt 0:00:10]} 2. Nf3 {[%emt 0:00:08]} d6 {[%emt 0:00:05]} 3. d4 {[%emt 0:00:07]} cxd4 {[%emt 0:00:05]} 4. Nxd4 {[%emt 0:00:06]} Nf6 {[%emt 0:00:06]} 5. Nc3 {[%emt 0:00:06]} a6 {[%emt 0:00:04]} 6. Bg5 {[%emt 0:00:19]} e6 {[%emt 0:00:06]} 7. f4 {[%emt 0:00:12]} Qb6 {[%emt 0:00:05]} 8. Qd2 {[%emt 0:00:13]} Qxb2 {[%emt 0:00:07]} 9. Rb1 {[%emt 0:00:15]} Qa3 {[%emt 0:00:05]} 10. f5 $1 {[%emt 0:00:09][%mdl 4] is more profitable than 10.e5 at the moment.} Nc6 {[%emt 0:01:53] The position is equal.} 11. fxe6 {[%emt 0:00:09] B97: Sicilian Najdorf: Poisoned Pawn.} Bxe6 {[%emt 0:00:15]} 12. Rxb7 {[%emt 0:00:21]} Nxd4 {[%emt 0:00:11]} 13. Qxd4 {[%emt 0:00:08]} Be7 $1 {[%emt 0:00:15]} 14. Bc4 {[%emt 0:02:10] [#] aiming for Rf1.} Rc8 {[%emt 0:00:13]} 15. Nd5 {[%emt 0:00:59]} Bxd5 {[%emt 0:01:12]} 16. Bxd5 {[%emt 0:00:44]} Nxd5 {[%emt 0:00:12]} 17. Qxg7 {[%emt 0:01:09]} Rf8 {[%emt 0:00:38][%cal Oe7f6]} 18. exd5 {[%emt 0:00:13]} Bxg5 {[%emt 0:00:06]} 19. Qxg5 {[%emt 0:00:06][%csl Gb7][%cal Rg5e7] [#]} Qc3+ {[%emt 0:00:18]} 20. Kf1 {[%emt 0:00:05][%csl Gb7][%cal Rg5e7,Be1f1,Bf1f2,Bf2g3][%mdl 32]} Qc4+ {[%emt 0:01:15]} 21. Kf2 {[%emt 0:01:16][%csl Gb7][%cal Rg5e7]} Qxc2+ {[%emt 0:00:14]} 22. Kg3 {[%emt 0:00:19][%csl Gb7][%cal Rg5e7] [#]} Qd3+ $146 {[%emt 0:00:06]} ({Predecessor:} 22... Qe4 23. Rf1 h6 24. Qg7 Rc3+ 25. Rf3 Rxf3+ 26. gxf3 Qe1+ 27. Kh3 Qf1+ 28. Kh4 Qf2+ 29. Qg3 Qd2 {1-0 (36) Epiney,F (2273)-Koteski,L (2116) IECG email 2003}) 23. Kh4 $1 {[%emt 0:00:00][%csl Gb7][%cal Rg5e7]} ({Don't go for} 23. Kg4 $2 h5+ 24. Kh4 (24. Kxh5 {leads to mate.} Rh8+ 25. Kg4 Rc4+) 24... Rc4+ 25. g4 Rxg4+ 26. Qxg4 hxg4 $19) 23... Qe4+ {[%emt 0:00:07]} (23... Qe2 $2 24. Qf5 Rc4+ 25. g4 Rxg4+ 26. Qxg4 $18) 24. g4 {[%emt 0:06:11] Rc1 is the strong threat.} h5 {[%emt 0:02:44] Strongly threatening ...hxg4.} 25. Qf5 {[%emt 0:02:09][%cal Rf5c8]} Qxg4+ {[%emt 0:00:41]} 26. Qxg4 {[%emt 0:00:08] The board is on fire.} hxg4 $11 {[%emt 0:00:04][%mdl 4096] Endgame KRR-KRR} 27. Re1+ {[%emt 0:07:18]} Kd8 {[%emt 0:00:06]} 28. Ree7 {[%emt 0:00:35][%csl Ge7][%cal Rb7d7]} Rc2 {[%emt 0:09:32][%csl LRa2,LRh2]} 29. Rbd7+ {[%emt 0:05:34]} Kc8 {[%emt 0:00:06]} 30. Ra7 {[%emt 0:00:07][%cal Ra7a8]} Kb8 {[%emt 0:08:08] Inhibits Ra8+.} 31. Reb7+ {[%emt 0:03:01]} Kc8 {[%emt 0:00:07]} 32. Rb4 {[%emt 0:09:21] Threatens to win with Ra8+.} Rh8+ {[%emt 0:09:56]} 33. Kg3 {[%emt 0:04:43] And now Ra8+ would win.} Rh3+ {[%emt 0:04:32]} 34. Kxg4 {[%emt 0:00:28]} Rhxh2 {[%emt 0:00:05]} 35. Rxa6 {[%emt 0:02:45]} Rhg2+ {[%emt 0:07:04]} 36. Kf5 {[%emt 0:02:28]} Rcf2+ {[%emt 0:03:21]} 37. Rf4 {[%emt 0:00:10]} Rxf4+ {[%emt 0:01:47]} 38. Kxf4 {[%emt 0:01:52] KR-KR} Rd2 {[%emt 0:00:13]} 39. Rxd6 {[%emt 0:01:43]} Kc7 {[%emt 0:00:27]} 40. Rc6+ {[%emt 0:00:41]} Kd7 {[%emt 0:00:05]} 41. Ke5 {[%emt 0:01:03]} Re2+ {[%emt 0:00:04]} 42. Kf6 {[%emt 0:00:17]} Rxa2 {[%emt 0:00:10]} 43. Kxf7 {[%emt 0:00:07]} Rf2+ {[%emt 0:00:04]} 44. Kg6 {[%emt 0:00:08]} Rd2 {[%emt 0:00:04]} 45. Rc5 {[%emt 0:00:07]} Kd6 {[%emt 0:00:02][%csl LRc5,LRd5]} 46. Ra5 {[%emt 0:00:06]} Rxd5 {[%emt 0:00:05]} 47. Rxd5+ {[%emt 0:00:05]} Kxd5 {[%emt 0:00:06] An even fight not without its subleties.  Weighted Error Value: White=0.01 (flawless) /Black=0.00 (flawless)} 1/2-1/2

[Event "5th Sharjah Masters 2022"]
[Site "Sharjah"]
[Date "2022.05.27"]
[Round "7.21"]
[White "Indjic, Aleksandar"]
[Black "Moroni, Luca Jr"]
[Result "1-0"]
[ECO "D02"]
[WhiteElo "2621"]
[BlackElo "2581"]
[Annotator "TA"]
[PlyCount "77"]
[EventDate "2022.05.21"]
[EventType "swiss"]
[EventCountry "UAE"]
[SourceTitle "playchess.com"]
[Source "ChessBase"]
[SourceQuality "1"]
[TimeControl "5400+30"]

{[%evp 9,77,0,14,20,19,25,35,33,34,47,53,44,56,47,79,23,23,23,39,41,44,27,30,4,0,0,0,0,0,0,0,0,0,0,0,0,38,0,0,0,28,41,58,0,79,11,13,14,14,0,55,-52,0,0,0,0,0,0,210,199,256,220,586,545,1179,1176,1141,1128,886,751]} 1. d4 {[%emt 0:00:04]} d5 {[%emt 0:00:04]} 2. Nf3 {[%emt 0:00:09]} Nf6 {[%emt 0:00:04]} 3. Bf4 {[%emt 0:00:09]} c5 {[%emt 0:00:18]} 4. e3 {[%emt 0:00:07]} Nc6 {[%emt 0:00:05]} 5. Nbd2 {[%emt 0:00:08]} Nh5 {[%emt 0:00:29]} 6. dxc5 {[%emt 0:00:19] D02: 1 d4 d5 2 Nf3 sidelines, including 2...Nf6 3 g3 and 2...Nf6 3 Bf4.} Nxf4 {[%emt 0:00:05]} 7. exf4 {[%emt 0:00:08]} g6 {[%emt 0:00:03]} 8. c3 {[%emt 0:00:32] White is slightly better.} Bh6 {[%emt 0:00:17]} 9. g3 {[%emt 0:00:11]} a5 {[%emt 0:00:26]} 10. a4 {[%emt 0:02:04]} O-O {[%emt 0:04:47]} 11. Nb3 {[%emt 0:01:28]} Bg4 {[%emt 0:12:18][%cal Oe7e5] [#]} 12. Be2 $146 {[%emt 0:02:34]} (12. h3 $16 Bc8 13. Bb5) ({Predecessor:} 12. Bg2 b6 13. O-O e6 14. h3 Bxf3 15. Bxf3 Qc7 16. Qe2 Rfd8 17. Rfd1 Bg7 18. h4 {0-1 (29) Nihal,S (2650)-Grischuk,A (2773) Chess.com INT 2021}) 12... Bxf3 {[%emt 0:17:15]} 13. Bxf3 {[%emt 0:00:15]} e6 {[%emt 0:00:08]} 14. h4 {[%emt 0:00:43]} b6 {[%emt 0:03:37]} 15. h5 {[%emt 0:00:09] hxg6 is the strong threat.} Bg7 {[%emt 0:00:28]} 16. hxg6 {[%emt 0:00:08]} hxg6 {[%emt 0:00:13]} 17. Kf1 {[%emt 0:00:12]} Rb8 {[%emt 0:01:54]} 18. Rb1 {[%emt 0:03:32]} Qe7 {[%emt 0:07:03]} 19. cxb6 {[%emt 0:00:12]} Rxb6 {[%emt 0:00:08]} 20. Be2 {[%emt 0:00:04]} Rfb8 {[%emt 0:06:56]} 21. Bb5 {[%emt 0:00:07]} Na7 {[%emt 0:02:52]} 22. Nd4 {[%emt 0:01:27]} Qc5 {[%emt 0:05:40]} 23. Nb3 {[%emt 0:07:14][%csl LRa5,LRc5]} (23. Kg2 $5 {[%cal Rd1d2]}) 23... Qe7 {[%emt 0:00:04]} 24. Nd4 $36 {[%emt 0:00:08][%mdl 2048] White has good play.} Qc5 {[%emt 0:00:03]} 25. Kg2 {[%emt 0:12:49]} Bxd4 {[%emt 0:00:47]} 26. cxd4 {[%emt 0:00:06]} ({Better is} 26. b4 $1 $14 Qxc3 27. Rb3 axb4 28. Rxc3 Bxc3 29. Bd3) 26... Qe7 {[%emt 0:01:05] [#]} (26... Qb4 $1 $11 {keeps the balance.}) 27. Bd3 {[%emt 0:01:44]} ({White should try} 27. b4 $1 $16 {[%cal Rb4a5]} axb4 28. Qe2) 27... Qf6 {[%emt 0:04:13]} 28. b3 {[%emt 0:04:12]} Nc6 {[%emt 0:03:33]} 29. Rh6 {[%emt 0:01:30]} Nxd4 {[%emt 0:07:53]} (29... Ne7 $11) 30. Rc1 {[%emt 0:02:38]} (30. Qd2 $1 $14) 30... Nf5 {[%emt 0:08:07]} ({Reject} 30... Nxb3 31. Bxg6 fxg6 32. Qg4 Nxc1 33. Rxg6+ Kf7 34. Rxf6+ Kxf6 35. Qg5+ Kf7 36. Qh5+ Kf6 37. Qg5+ Kf7 38. Qh5+ Kf6 39. Qh4+ Kg6 40. Qg5+ Kf7 $11) (30... Rxb3 $15 31. Rh2 R3b4) 31. Bxf5 $11 {[%emt 0:04:38]} Qxf5 {[%emt 0:00:01]} 32. Rc3 $1 {[%emt 0:00:35]} Qf6 {[%emt 0:01:52]} 33. Qc1 {[%emt 0:00:29] White wants to mate with Rc8+.} Rd8 {[%emt 0:01:58] [#]} (33... Rxb3 {leads to mate.} 34. Rc8+) (33... Qd8 $11 {and Black has nothing to worry.}) 34. g4 $1 $18 {[%emt 0:00:45][%cal Bg3g4,Bg4g5][%mdl 32] And now Rch3 would win.} Rbb8 {[%emt 0:06:00]} 35. Rch3 {[%emt 0:07:48][%cal Of4f5] aiming for f5!} Qd4 $2 {[%emt 0:01:42]} (35... Rbc8 36. g5 Qg7) 36. g5 {[%emt 0:00:28][%cal Of4f5] Threatens to win with f5! White is clearly winning.} Rdc8 {[%emt 0:03:31]} 37. Qe3 {[%emt 0:00:24]} Qg7 {[%emt 0:02:23]} 38. Qa7 {[%emt 0:00:26] Qe7 would kill now.} Rb4 {[%emt 0:00:36]} 39. Rh7 {[%emt 0:00:50] Weighted Error Value: White=0.16 (very precise) /Black=0.38} 1-0

[Event "5th Sharjah Masters 2022"]
[Site "Sharjah"]
[Date "2022.05.27"]
[Round "7.22"]
[White "Ganguly, Surya Shekhar"]
[Black "Davtyan, Artur"]
[Result "0-1"]
[ECO "C54"]
[WhiteElo "2616"]
[BlackElo "2488"]
[Annotator "TA"]
[PlyCount "88"]
[EventDate "2022.05.21"]
[EventType "swiss"]
[EventCountry "UAE"]
[SourceTitle "playchess.com"]
[Source "ChessBase"]
[SourceQuality "1"]
[TimeControl "5400+30"]

{[%evp 14,88,19,16,22,14,16,23,32,26,33,33,50,35,50,41,38,-33,-10,-8,-2,-189,-195,-195,-195,-192,-191,-210,-227,-218,-220,-217,-217,-214,-156,-157,-154,-168,-158,-159,-166,-241,-242,-235,-218,-217,-212,-211,-168,-175,-177,-168,-177,-171,-170,-154,-154,-361,-381,-239,-371,-447,-421,-456,-447,-472,-452,-437,-436,-397,-385,-504,-489,-469,-481,-666,-657]} 1. e4 {[%emt 0:00:13]} e5 {[%emt 0:00:11]} 2. Nf3 {[%emt 0:00:06]} Nc6 {[%emt 0:00:09]} 3. Bc4 {[%emt 0:00:22]} Nf6 {[%emt 0:00:08]} 4. d3 {[%emt 0:00:05]} Bc5 {[%emt 0:00:07]} 5. O-O {[%emt 0:00:07]} d6 {[%emt 0:03:02]} 6. c3 {[%emt 0:00:15]} O-O {[%emt 0:00:22]} 7. Re1 {[%emt 0:00:30]} h6 {[%emt 0:01:22]} 8. h3 {[%emt 0:00:19]} a5 {[%emt 0:05:20] 8...Bb6 is the recent fashion. C54: Giuoco Piano: 4 c3 Nf6, main lines with 5 d4 and 5 d3.} 9. Nbd2 {[%emt 0:02:09][%cal Bb1d2,Bd2f1,Bf1g3][%mdl 32]} Ba7 {[%emt 0:04:06]} 10. Nf1 {[%emt 0:02:56]} Ne7 {[%emt 0:09:25][%cal Oa5a4,Bc6e7,Be7g6,Bg6e5][%mdl 32] White has an edge.} 11. Bb3 {[%emt 0:01:14]} Ng6 {[%emt 0:02:06]} 12. Ng3 {[%emt 0:10:11] [#]} Nh7 $146 {[%emt 0:17:13]} ({Predecessor:} 12... Re8 13. d4 c6 14. Bc2 Be6 15. Be3 Qc7 16. a4 Rad8 17. Qd2 Bb8 18. Rad1 d5 19. exd5 Bxd5 20. Bxg6 Bxf3 21. Bxf7+ Qxf7 22. gxf3 exd4 23. cxd4 {0-1 (32) Ragger,M (2687)-Nakamura,H (2746) St Petersburg 2018}) 13. d4 {[%emt 0:02:55]} Ng5 {[%emt 0:06:18]} 14. Nxg5 {[%emt 0:22:16]} hxg5 {[%emt 0:00:06]} 15. dxe5 {[%emt 0:00:09]} ({White should play} 15. Nf5 $14) 15... Nxe5 {[%emt 0:00:21]} (15... a4 $5 16. Bxa4 Nxe5 $11) 16. Qh5 {[%emt 0:00:23]} Qf6 {[%emt 0:31:38]} 17. Bxg5 $2 {[%emt 0:00:28]} (17. Rf1 $11 {and White stays safe.}) 17... Qxf2+ $19 {[%emt 0:01:25]} 18. Kh2 {[%emt 0:00:09] [#] And now Rf1 would win.} Bg4 $1 {[%emt 0:03:32][%mdl 512]} 19. hxg4 {[%emt 0:00:27] [#]} g6 {[%emt 0:03:00][%cal Bg7g6,Bg6h5][%mdl 32] Prevents Nf5.} ({Worse is} 19... Nf3+ 20. Kh3 Nxe1 21. Rxe1 Qxe1 22. Qg6 $11) 20. Rf1 {[%emt 0:01:39]} gxh5 {[%emt 0:00:55] Really sharp!} 21. Rxf2 {[%emt 0:00:01]} Nxg4+ {[%emt 0:00:13]} ({Inferior is} 21... Bxf2 22. gxh5 a4 23. Bc2 $15) 22. Kh3 {[%emt 0:00:02]} Nxf2+ {[%emt 0:00:14]} 23. Kh4 {[%emt 0:00:02]} Rae8 {[%emt 0:04:28]} 24. Bh6 {[%emt 0:02:24] [#]} Nxe4 $1 {[%emt 0:00:44]} 25. Nxh5 {[%emt 0:00:04] [#]} Re5 $1 {[%emt 0:02:12]} 26. Bxf8 {[%emt 0:01:04]} Kxf8 {[%emt 0:00:10]} 27. g4 {[%emt 0:00:11]} (27. Nf4 $142) 27... Bf2+ {[%emt 0:03:10]} 28. Kh3 {[%emt 0:00:01]} Be1 {[%emt 0:00:58]} 29. Kg2 {[%emt 0:06:05]} ({Wrong is} 29. Rxe1 $2 Ng5+ 30. Kh4 Nf3+ 31. Kg3 Nxe1 $19) 29... Nd2 {[%emt 0:00:04] Hoping for ...Re2+.} 30. Nf4 {[%emt 0:07:21] Prevents Re2+.} Re4 {[%emt 0:00:43]} 31. Bd5 {[%emt 0:04:05]} Rxf4 {[%emt 0:00:17]} 32. Rxe1 {[%emt 0:00:02]} Rxg4+ {[%emt 0:01:48][%mdl 4096] Endgame KRB-KRN} 33. Kh3 {[%emt 0:00:01]} Rg5 {[%emt 0:00:32]} 34. Bxb7 {[%emt 0:00:02]} Rb5 {[%emt 0:00:33][%csl LRb2,LRb7]} 35. Bc6 {[%emt 0:01:43] Now White is beyond hope.} (35. Re2 $17) 35... Rxb2 {[%emt 0:00:11]} 36. Re8+ {[%emt 0:00:02]} Kg7 {[%emt 0:00:04]} 37. Re7 {[%emt 0:00:03]} Rc2 {[%emt 0:01:01]} 38. Bd5 {[%emt 0:01:28]} Rxc3+ {[%emt 0:00:05]} 39. Kg4 {[%emt 0:00:02]} Kf6 {[%emt 0:00:04]} 40. Rxf7+ {[%emt 0:00:05]} Ke5 {[%emt 0:00:02]} 41. Bb7 {[%emt 0:00:24]} Rc4+ {[%emt 0:00:52]} 42. Kg5 {[%emt 0:00:13]} Ne4+ {[%emt 0:00:48] Black is clearly winning.} 43. Kg6 {[%emt 0:00:01]} Kd4 {[%emt 0:00:28]} 44. Kf5 {[%emt 0:00:26]} d5 {[%emt 0:00:07] Weighted Error Value: White=0.33/Black=0.07 (flawless)} 0-1

[Event "5th Sharjah Masters 2022"]
[Site "Sharjah"]
[Date "2022.05.27"]
[Round "7.23"]
[White "Aryan Chopra"]
[Black "Erdogdu, Mert"]
[Result "1-0"]
[ECO "B81"]
[WhiteElo "2609"]
[BlackElo "2407"]
[Annotator "TA"]
[PlyCount "95"]
[EventDate "2022.05.21"]
[EventType "swiss"]
[EventCountry "UAE"]
[SourceTitle "playchess.com"]
[Source "ChessBase"]
[SourceQuality "1"]
[TimeControl "5400+30"]

{[%evp 18,95,31,31,68,12,28,10,23,16,17,6,9,0,1,0,13,16,16,0,8,0,45,63,54,27,20,21,29,0,0,0,0,0,0,0,20,14,14,16,20,0,0,0,0,0,8,0,8,8,8,8,8,8,8,8,8,8,8,8,29968,29969,29969,29970,29970,29971,29971,29972,29974,29974,29972,5439,29971,29971,29968,29970,29969,29968,5439,5065]} 1. e4 {[%emt 0:00:03]} c5 {[%emt 0:00:14]} 2. Nf3 {[%emt 0:00:04]} d6 {[%emt 0:00:10]} 3. d4 {[%emt 0:00:05]} cxd4 {[%emt 0:00:06]} 4. Nxd4 {[%emt 0:00:04]} Nf6 {[%emt 0:00:06]} 5. Nc3 {[%emt 0:00:05]} a6 {[%emt 0:00:44]} 6. Be3 {[%emt 0:00:14]} e6 {[%emt 0:01:19]} 7. a3 {[%emt 0:00:05]} b5 {[%emt 0:01:01]} 8. g4 {[%emt 0:00:09]} Bb7 {[%emt 0:01:22]} 9. Bg2 {[%emt 0:00:14]} h6 {[%emt 0:03:38] 9...Be7 is becoming the main line.} 10. h4 {[%emt 0:00:34]} Nfd7 {[%emt 0:08:34] B81: Sicilian Scheveningen: Keres Attack.} 11. g5 {[%emt 0:05:58] White is more active.} (11. Qe2 $14) 11... hxg5 $1 $11 {[%emt 0:02:05]} 12. hxg5 {[%emt 0:00:05]} Rxh1+ {[%emt 0:00:04] The position is equal.} 13. Bxh1 {[%emt 0:00:03][%cal Og5g6]} g6 {[%emt 0:03:40] [#]} 14. Qe2 $146 {[%emt 0:14:57]} ({Predecessor:} 14. f4 Nb6 15. Qd3 Nc4 16. O-O-O Nd7 17. Nxe6 fxe6 18. e5 Ndxe5 19. fxe5 Nxe5 20. Qf1 {0-1 (46) Kozhevnikov,I (1942)-Yudin,I (2250) Moscow 2011}) 14... Nc6 {[%emt 0:02:07] aiming for ...Nxd4.} 15. Nxc6 {[%emt 0:03:57]} Bxc6 {[%emt 0:00:26]} 16. O-O-O {[%emt 0:00:06]} Qb8 {[%emt 0:05:56] [#]} 17. Nd5 $1 {[%emt 0:18:33]} a5 {[%emt 0:05:57]} (17... exd5 $2 18. exd5 Ne5 19. dxc6 $18) 18. b3 {[%emt 0:02:38]} Bg7 {[%emt 0:02:58] [#] Prevents Nf6+.} (18... exd5 $2 19. exd5 Bxd5 20. Ba7+ Be6 21. Bxb8 $18) 19. f4 $1 {[%emt 0:03:40][%cal Of4f5]} Bxd5 {[%emt 0:10:10]} (19... exd5 $2 20. exd5 Kf8 21. dxc6 $18) (19... Qb7 20. Bd4) 20. exd5 {[%emt 0:00:14]} e5 {[%emt 0:00:13]} 21. Be4 {[%emt 0:15:21] f5 is the strong threat.} exf4 {[%emt 0:05:29]} 22. Bxf4 {[%emt 0:00:24] Strongly threatening Bxg6+.} Ne5 {[%emt 0:01:25]} 23. Rh1 {[%emt 0:01:13]} Kf8 {[%emt 0:18:56]} 24. Qf2 {[%emt 0:04:56]} Qe8 {[%emt 0:03:25]} 25. Bd2 {[%emt 0:11:07]} b4 {[%emt 0:05:59]} 26. a4 {[%emt 0:00:55]} ({Reject} 26. axb4 a4 27. Qd4 axb3 28. cxb3 Ng4 29. Rh8+ Bxh8 30. Qxh8+ Ke7 31. Qxe8+ Kxe8 $17) 26... Ng4 {[%emt 0:07:11]} 27. Qf4 {[%emt 0:00:26]} Qe5 {[%emt 0:00:17]} 28. Qxe5 {[%emt 0:00:14]} Nxe5 {[%emt 0:00:05]} 29. Kd1 {[%emt 0:02:58]} Re8 {[%emt 0:01:30] Threatens to win with ...Ng4.} 30. Rf1 {[%emt 0:01:20]} Kg8 {[%emt 0:01:11]} 31. Re1 {[%emt 0:01:43]} Nd7 {[%emt 0:04:08]} 32. Bg2 {[%emt 0:06:44]} Rxe1+ {[%emt 0:00:28]} 33. Bxe1 {[%emt 0:00:01][%mdl 4096] Endgame KBB-KBN} Bd4 {[%emt 0:00:08]} 34. c3 {[%emt 0:02:37]} bxc3 {[%emt 0:04:55]} 35. Kc2 {[%emt 0:00:02]} f6 {[%emt 0:00:21]} 36. Bxc3 {[%emt 0:00:54]} (36. gxf6 {is interesting.} Kf7 37. Bxc3 Bxc3 38. Kxc3 Nc5 39. b4) 36... Bxc3 {[%emt 0:00:11]} 37. Kxc3 {[%emt 0:00:02] Black must now prevent b4.} fxg5 {[%emt 0:00:20] KB-KN} 38. b4 {[%emt 0:02:32]} axb4+ $2 {[%emt 0:00:21][%mdl 8192] A mistake that costs the game.} (38... Kf7 $11) 39. Kxb4 {[%emt 0:00:02]} Kf7 {[%emt 0:00:55]} 40. a5 {[%emt 0:02:00]} Ke7 {[%emt 0:00:12] [#]} 41. Kb5 $1 {[%emt 0:00:08]} Kd8 {[%emt 0:00:15] [#]} 42. Kc6 $1 {[%emt 0:00:09]} Nc5 {[%emt 0:02:04]} 43. Bh3 {[%emt 0:00:04]} Ke7 {[%emt 0:00:37]} 44. Kb6 {[%emt 0:00:51]} (44. Bf1 $142 Nb3 45. a6 g4 46. a7 Kf6 47. a8=Q Nd4+ 48. Kxd6 Nf3 49. Qf8+ Kg5 50. Ke7) 44... Na4+ {[%emt 0:00:36]} 45. Kb5 {[%emt 0:00:11]} Nc3+ {[%emt 0:00:13]} 46. Kc6 {[%emt 0:00:07]} Na2 {[%emt 0:00:25]} 47. a6 {[%emt 0:00:10]} Nb4+ {[%emt 0:00:25]} 48. Kb7 {[%emt 0:00:06] Weighted Error Value: White=0.07 (flawless) /Black=0.41} 1-0